bitfinex/quotes_BTCUSD_20230405
["timestamp","ask_amount","ask_price","bid_price","bid_amount"]
[1680684478156,0.38764399,28565.0,28564.0,0.80924162]
[1680684478380,0.38764399,28565.0,28564.0,0.80936162]
[1680684478584,0.38764399,28565.0,28564.0,0.80937637]
[1680684483607,0.38764399,28565.0,28564.0,0.50574433]
[1680684483849,0.83150424,28565.0,28564.0,0.50410958]
[1680684484108,0.53826699,28565.0,28564.0,0.50410958]
[1680684484344,1.21171188,28565.0,28564.0,0.50410958]
[1680684485260,1.18727845,28565.0,28564.0,0.50410958]
[1680684485479,1.21427845,28565.0,28564.0,0.50410958]
[1680684485716,1.18727845,28565.0,28564.0,0.50410958]
[1680684485933,1.21427845,28565.0,28564.0,0.50410958]
[1680684486124,1.18727845,28565.0,28564.0,0.50410958]
[1680684486360,1.21427845,28565.0,28564.0,0.50410958]
[1680684488971,1.38930845,28565.0,28564.0,0.50410958]
[1680684489677,1.01586356,28565.0,28564.0,0.50410958]
[1680684489926,1.36888715,28565.0,28564.0,0.32085566]
[1680684490165,1.26888715,28565.0,28564.0,0.32085566]
[1680684491364,1.44776171,28565.0,28564.0,0.32085566]
[1680684492514,1.26888715,28565.0,28564.0,0.32085566]
[1680684494136,1.26846072,28565.0,28564.0,0.32099041]
[1680684494378,1.26846072,28565.0,28564.0,0.32097566]
[1680684499050,1.26846072,28565.0,28564.0,0.32091566]
[1680684499265,1.26846072,28565.0,28564.0,0.32085566]
[1680684499470,1.26876072,28565.0,28564.0,0.32085566]
[1680684499684,1.43502998,28565.0,28564.0,0.32085566]
[1680684500788,1.08200639,28565.0,28564.0,0.32085566]
[1680684501026,1.25290799,28565.0,28564.0,0.32085566]
[1680684501740,1.22590799,28565.0,28564.0,0.32085566]
[1680684501959,1.22590799,28565.0,28564.0,0.26649405]
[1680684501960,2.06584914,28565.0,28564.0,0.26649405]
[1680684502175,0.21,28563.0,28560.0,0.0025]
[1680684502411,0.87488513,28561.0,28560.0,0.0025]
[1680684502631,1.30063098,28561.0,28560.0,0.0025]
[1680684502867,1.17488513,28561.0,28560.0,0.0025]
[1680684503083,1.18338513,28561.0,28560.0,0.0025]
[1680684503299,1.09955456,28561.0,28560.0,0.0025]
[1680684503501,1.12655456,28561.0,28560.0,0.0025]
[1680684503707,1.12685456,28561.0,28560.0,0.0025]
[1680684504141,1.12674354,28561.0,28560.0,0.0025]
[1680684504359,1.09974354,28561.0,28560.0,0.0025]
[1680684504569,1.31614311,28561.0,28560.0,0.0025]
[1680684504780,1.28914311,28561.0,28560.0,0.0025]
[1680684505863,1.31614311,28561.0,28560.0,0.0025]
[1680684506343,1.48704471,28561.0,28560.0,0.0025]
[1680684506549,1.46004471,28561.0,28560.0,0.0025]
[1680684506755,1.48704471,28561.0,28560.0,0.0025]
[1680684506971,0.73315354,28561.0,28560.0,0.0025]
[1680684507193,0.73315354,28561.0,28560.0,0.35909512]
[1680684507441,0.73315354,28561.0,28560.0,0.35915512]
[1680684507442,0.68189954,28561.0,28560.0,0.35915512]
[1680684507656,0.73165254,28561.0,28560.0,0.35915512]
[1680684507910,0.76600137,28561.0,28560.0,0.35915512]
[1680684508546,0.73900137,28561.0,28560.0,0.35946734]
[1680684508766,0.76600137,28561.0,28560.0,0.35946734]
[1680684509008,0.73900137,28561.0,28560.0,0.35946734]
[1680684509225,0.76600137,28561.0,28560.0,0.35946734]
[1680684509443,0.76600137,28561.0,28560.0,0.00287222]
[1680684509649,0.77450137,28561.0,28560.0,0.00281222]
[1680684510288,0.86212105,28561.0,28560.0,0.00281222]
[1680684510496,0.86212105,28561.0,28560.0,0.0025]
[1680684511406,0.87450137,28561.0,28560.0,0.0025]
[1680684511849,1.24602683,28561.0,28560.0,0.0025]
[1680684514279,1.2456054,28561.0,28560.0,0.0025]
[1680684517775,1.26243899,28561.0,28560.0,0.0025]
[1680684523824,1.26267899,28561.0,28560.0,0.0025]
[1680684524049,1.26273899,28561.0,28560.0,0.0025]
[1680684524259,1.26231585,28561.0,28560.0,0.0025]
[1680684524896,1.27095466,28561.0,28560.0,0.0025]
[1680684526851,0.73284261,28561.0,28560.0,0.0025]
[1680684527517,0.78313361,28561.0,28560.0,0.0025]
[1680684528001,0.73284261,28561.0,28560.0,0.0025]
[1680684531097,0.03563881,28561.0,28560.0,0.0025]
[1680684531317,0.03563881,28561.0,28560.0,0.011253]
[1680684531318,0.027,28561.0,28560.0,0.011253]
[1680684531534,0.027,28561.0,28560.0,0.30754332]
[1680684531745,0.027,28561.0,28560.0,0.011433]
[1680684531976,0.027,28561.0,28560.0,0.011253]
[1680684532211,2.09432262,28568.0,28561.0,0.1]
[1680684532453,0.10782262,28568.0,28566.0,0.008751]
[1680684532718,2.19637642,28572.0,28566.0,0.008751]
[1680684532719,0.0003,28570.0,28566.0,0.008751]
[1680684532966,1.9868,28572.0,28567.0,0.008751]
[1680684532967,6e-05,28571.0,28567.0,0.008751]
[1680684533219,0.0003,28573.0,28567.0,0.008751]
[1680684533457,0.003,28568.0,28567.0,0.008751]
[1680684533692,0.35501056,28573.0,28567.0,0.007214]
[1680684533908,0.003,28571.0,28568.0,0.34136847]
[1680684535274,0.0003,28572.0,28568.0,0.34136847]
[1680684535513,0.0088,28572.0,28568.0,0.34136847]
[1680684535730,0.006,28571.0,28568.0,0.34336847]
[1680684536143,0.0088,28572.0,28568.0,0.34136847]
[1680684536380,0.0148,28572.0,28568.0,0.34336847]
[1680684536592,0.0088,28572.0,28568.0,0.34136847]
[1680684537016,0.006,28571.0,28568.0,0.34336847]
[1680684537893,0.0088,28572.0,28568.0,0.34136847]
[1680684538144,0.0148,28572.0,28568.0,0.34336847]
[1680684538355,0.0088,28572.0,28568.0,0.34136847]
[1680684538568,0.006,28571.0,28569.0,0.11413826]
[1680684539016,0.0085,28572.0,28569.0,0.11413826]
[1680684539228,0.0145,28572.0,28569.0,0.11413826]
[1680684539448,0.0085,28572.0,28569.0,0.11413826]
[1680684539643,0.006,28571.0,28569.0,0.11613826]
[1680684539767,0.0085,28572.0,28569.0,0.11413826]
[1680684540202,0.1085,28572.0,28569.0,0.11413826]
[1680684540422,0.1088,28572.0,28569.0,0.11413826]
[1680684540837,0.1148,28572.0,28569.0,0.11613826]
[1680684541235,0.0148,28572.0,28569.0,0.11613826]
[1680684541451,0.0145,28572.0,28569.0,0.11613826]
[1680684543697,0.0145,28572.0,28570.0,0.26813759]
[1680684543943,0.0148,28572.0,28570.0,0.26813759]
[1680684544720,0.0088,28572.0,28570.0,0.26813759]
[1680684545222,0.69163052,28572.0,28570.0,0.002]
[1680684545488,0.83830865,28571.0,28570.0,0.002]
[1680684545995,0.84710865,28571.0,28570.0,0.002]
[1680684546659,0.84710865,28571.0,28567.0,0.29185326]
[1680684546870,0.0085,28570.0,28567.0,0.29185326]
[1680684547072,0.35471056,28569.0,28567.0,0.29185326]
[1680684547276,0.35501056,28569.0,28567.0,0.29185326]
[1680684547483,0.0085,28568.0,28567.0,0.29185326]
[1680684547902,0.0085,28568.0,28567.0,0.29385326]
[1680684548053,0.0085,28568.0,28567.0,0.29185326]
[1680684548281,0.0085,28568.0,28567.0,0.002]
[1680684548481,0.0085,28568.0,28563.0,6e-05]
[1680684548774,0.15039681,28568.0,28564.0,0.34297382]
[1680684549005,0.0085,28568.0,28564.0,0.34315382]
[1680684549193,0.0085,28568.0,28565.0,0.007906]
[1680684549567,0.0145,28568.0,28567.0,0.002]
[1680684549788,0.0145,28568.0,28564.0,0.34315382]
[1680684549997,0.0185,28568.0,28565.0,0.007471]
[1680684550167,0.0125,28568.0,28565.0,0.007471]
[1680684550373,0.52974056,28566.0,28563.0,6e-05]
[1680684550581,0.050703,28564.0,28562.0,0.00099191]
[1680684550787,0.40404356,28563.0,28562.0,0.14744341]
[1680684551017,0.41254356,28563.0,28562.0,0.1464515]
[1680684551211,0.41254356,28563.0,28560.0,0.0025]
[1680684551448,0.052009,28561.0,28560.0,0.0025]
[1680684551655,0.060509,28561.0,28560.0,0.0025]
[1680684552222,0.0085,28561.0,28560.0,0.0025]
[1680684552431,0.050988,28561.0,28560.0,0.00281222]
[1680684552638,0.059488,28561.0,28560.0,0.00281222]
[1680684553043,0.069488,28561.0,28560.0,0.00481222]
[1680684553251,0.0085,28561.0,28560.0,0.00281222]
[1680684553495,0.01,28561.0,28560.0,0.00481222]
[1680684553719,0.0085,28561.0,28560.0,0.00281222]
[1680684553904,0.060355,28561.0,28560.0,0.00281222]
[1680684554112,0.068165,28561.0,28560.0,0.00481222]
[1680684554357,0.05926,28561.0,28560.0,0.00281222]
[1680684554564,0.0085,28561.0,28560.0,0.00281222]
[1680684554880,0.40591856,28561.0,28560.0,0.00281222]
[1680684555019,0.41441856,28561.0,28560.0,0.00281222]
[1680684555245,0.42441856,28561.0,28560.0,0.00481222]
[1680684555429,0.41441856,28561.0,28560.0,0.0025]
[1680684555664,0.41441856,28561.0,28560.0,0.0045]
[1680684555665,0.42441856,28561.0,28560.0,0.0045]
[1680684556095,0.41441856,28561.0,28560.0,0.0025]
[1680684556549,0.87610392,28561.0,28560.0,0.0045]
[1680684556750,1.16580392,28561.0,28560.0,0.0025]
[1680684556966,1.17580392,28561.0,28560.0,0.0045]
[1680684557228,1.16580392,28561.0,28560.0,0.0025]
[1680684557673,1.16610392,28561.0,28560.0,0.0025]
[1680684558144,1.04625783,28561.0,28560.0,0.0025]
[1680684559243,1.05625783,28561.0,28560.0,0.0045]
[1680684559665,1.04625783,28561.0,28560.0,0.0025]
[1680684559879,1.05625783,28561.0,28560.0,0.0045]
[1680684560086,1.04625783,28561.0,28560.0,0.0025]
[1680684560286,1.04625783,28561.0,28560.0,0.0045]
[1680684560287,1.05625783,28561.0,28560.0,0.0045]
[1680684560493,1.04625783,28561.0,28560.0,0.0025]
[1680684560695,1.05625783,28561.0,28560.0,0.0045]
[1680684561103,1.04625783,28561.0,28560.0,0.0025]
[1680684561305,1.05625783,28561.0,28560.0,0.0045]
[1680684561509,1.20764361,28561.0,28560.0,0.0045]
[1680684562138,1.05625783,28561.0,28560.0,0.0025]
[1680684562360,1.04625783,28561.0,28560.0,0.0025]
[1680684562791,1.05625783,28561.0,28560.0,0.0045]
[1680684563204,1.04625783,28561.0,28560.0,0.0025]
[1680684563408,1.05625783,28561.0,28560.0,0.0045]
[1680684563606,1.04625783,28561.0,28560.0,0.0025]
[1680684563825,1.05625783,28561.0,28560.0,0.0045]
[1680684564260,1.04583527,28561.0,28560.0,0.0025]
[1680684565294,1.05583527,28561.0,28560.0,0.0045]
[1680684565922,0.724596,28561.0,28560.0,0.0045]
[1680684566334,0.724296,28561.0,28560.0,0.0045]
[1680684567811,0.724596,28561.0,28560.0,0.0045]
[1680684568415,0.724296,28561.0,28560.0,0.0045]
[1680684569545,0.714296,28561.0,28560.0,0.0025]
[1680684569761,0.724296,28561.0,28560.0,0.0045]
[1680684572674,0.72193371,28561.0,28560.0,0.0045]
[1680684574323,0.67321056,28561.0,28560.0,0.16986979]
[1680684575246,0.66321056,28561.0,28560.0,0.16786979]
[1680684575451,0.67221056,28561.0,28560.0,0.16986979]
[1680684575659,0.66321056,28561.0,28560.0,0.16786979]
[1680684575887,0.67221056,28561.0,28560.0,0.16986979]
[1680684576101,0.66321056,28561.0,28560.0,0.16786979]
[1680684576321,0.67221056,28561.0,28560.0,0.16986979]
[1680684577640,0.72155356,28561.0,28560.0,0.16986979]
[1680684577866,0.67221056,28561.0,28560.0,0.16986979]
[1680684578074,0.37221056,28561.0,28560.0,0.16986979]
[1680684578991,0.37221056,28561.0,28560.0,0.16992979]
[1680684579467,0.37221056,28561.0,28560.0,0.17024201]
[1680684579697,0.37221056,28561.0,28560.0,0.17018201]
[1680684580422,0.37221056,28561.0,28560.0,0.16986979]
[1680684581821,0.37221056,28561.0,28560.0,0.16992979]
[1680684584103,0.37251056,28561.0,28560.0,0.16000679]
[1680684584343,0.37251056,28561.0,28560.0,0.002]
[1680684584583,0.42320256,28561.0,28560.0,0.002]
[1680684584817,0.37251056,28561.0,28560.0,0.002]
[1680684585533,0.37251056,28561.0,28560.0,0.00231222]
[1680684585766,0.37251056,28561.0,28560.0,0.00168823]
[1680684585767,0.37221056,28561.0,28560.0,0.00168823]
[1680684586014,0.37221056,28561.0,28560.0,0.00112823]
[1680684587223,0.74772982,28561.0,28558.0,0.1057207]
[1680684587476,0.0085,28560.0,28558.0,0.1057207]
[1680684588290,0.0195,28560.0,28558.0,0.1077207]
[1680684588491,0.0195,28560.0,28559.0,0.0001226]
[1680684588771,0.07095,28560.0,28559.0,0.0001226]
[1680684588987,0.0195,28560.0,28559.0,0.0001226]
[1680684589635,0.39946422,28560.0,28559.0,0.0001226]
[1680684589834,0.39976422,28560.0,28559.0,0.0001226]
[1680684590092,0.44875222,28560.0,28559.0,0.0001226]
[1680684590330,0.39976422,28560.0,28559.0,0.0001226]
[1680684590544,0.42703456,28560.0,28559.0,0.0001226]
[1680684590734,0.75609028,28560.0,28559.0,0.0001226]
[1680684590861,0.76688028,28560.0,28559.0,0.0021226]
[1680684591463,0.85359831,28560.0,28559.0,0.0021226]
[1680684591690,0.84259831,28560.0,28559.0,0.0001226]
[1680684591906,0.85359831,28560.0,28559.0,0.0021226]
[1680684592384,0.85359831,28560.0,28559.0,0.002]
[1680684592826,0.85389831,28560.0,28559.0,0.002]
[1680684593031,0.85359831,28560.0,28559.0,0.002]
[1680684593442,0.85389831,28560.0,28559.0,0.002]
[1680684594858,0.88937651,28560.0,28559.0,0.002]
[1680684597058,0.80239001,28560.0,28559.0,0.002]
[1680684597265,0.80224001,28560.0,28559.0,0.002]
[1680684600006,0.74971601,28560.0,28559.0,0.002]
[1680684600250,0.80038501,28560.0,28559.0,0.002]
[1680684600498,0.74971601,28560.0,28559.0,0.0021226]
[1680684600934,0.79835501,28560.0,28559.0,0.0021226]
[1680684601583,0.79835501,28560.0,28559.0,0.002]
[1680684608178,0.79835501,28560.0,28559.0,0.002]
[1680684609891,1.09835501,28560.0,28559.0,0.002]
[1680684612330,0.75820929,28560.0,28559.0,0.002]
[1680684612571,1.20999537,28560.0,28559.0,0.002]
[1680684613595,1.19899537,28560.0,28556.0,0.0025]
[1680684613832,0.80276856,28559.0,28556.0,0.0025]
[1680684614066,0.058667,28558.0,28556.0,0.0025]
[1680684614297,0.40365856,28557.0,28556.0,0.0025]
[1680684614925,0.41215856,28557.0,28556.0,0.0025]
[1680684616588,0.43915856,28557.0,28556.0,0.0025]
[1680684622700,0.084448,28557.0,28556.0,0.15952712]
[1680684622929,0.0355,28557.0,28556.0,0.15952712]
[1680684623140,0.084221,28557.0,28556.0,0.15952712]
[1680684625174,0.0355,28557.0,28556.0,0.15952712]
[1680684625827,0.089054,28557.0,28556.0,0.15952712]
[1680684627466,0.089054,28557.0,28556.0,0.16001758]
[1680684627689,0.027,28557.0,28556.0,0.0867902]
[1680684627909,0.027,28557.0,28556.0,0.31391444]
[1680684628122,0.027,28557.0,28556.0,0.18801811]
[1680684628332,0.027,28557.0,28556.0,0.18819811]
[1680684628747,0.027,28557.0,28556.0,0.17944411]
[1680684629152,0.02688706,28557.0,28556.0,0.18801811]
[1680684629392,0.0003,28562.0,28556.0,0.18801811]
[1680684629651,0.0085,28562.0,28558.0,0.08387074]
[1680684629864,0.0088,28562.0,28558.0,0.08387074]
[1680684630074,0.0085,28562.0,28558.0,0.08387074]
[1680684630287,0.0088,28563.0,28558.0,0.08387074]
[1680684630527,0.36351056,28563.0,28559.0,0.19056582]
[1680684630735,0.022,28562.0,28559.0,0.19056582]
[1680684630939,0.0223,28562.0,28559.0,0.19056582]
[1680684632714,0.0003,28562.0,28559.0,0.19056582]
[1680684632914,0.0273,28562.0,28559.0,0.19056582]
[1680684634708,0.027,28562.0,28559.0,0.19074582]
[1680684635354,0.43361179,28561.0,28559.0,0.00018]
[1680684635577,0.43361179,28561.0,28558.0,0.07727777]
[1680684635578,0.47550143,28560.0,28558.0,0.07727777]
[1680684635799,0.0085,28559.0,28558.0,0.07721777]
[1680684636450,0.0085,28559.0,28558.0,0.07746298]
[1680684636692,0.0085,28559.0,28558.0,0.00036521]
[1680684636898,0.0305,28559.0,28558.0,0.00030521]
[1680684637609,0.0305,28559.0,28558.0,0.00036521]
[1680684639251,0.48509827,28559.0,28558.0,0.00024521]
[1680684639492,0.53341627,28559.0,28558.0,0.00024521]
[1680684640292,0.91972651,28559.0,28558.0,0.00024521]
[1680684640533,0.91972651,28559.0,28556.0,0.0025]
[1680684640783,0.40586356,28558.0,28556.0,0.0025]
[1680684641024,0.149342,28557.0,28556.0,0.0025]
[1680684641229,0.50405256,28557.0,28556.0,0.0025]
[1680684641522,0.51255256,28557.0,28556.0,0.0025]
[1680684641721,0.51282836,28557.0,28556.0,0.0025]
[1680684642439,0.53982836,28557.0,28556.0,0.0025]
[1680684642683,0.53982836,28557.0,28556.0,0.00299046]
[1680684643747,0.43982836,28557.0,28556.0,0.00299046]
[1680684644016,0.44233736,28557.0,28556.0,0.00299046]
[1680684644258,0.44037136,28557.0,28556.0,0.00299046]
[1680684649144,0.4399744,28557.0,28556.0,0.00299046]
[1680684649608,0.3900894,28557.0,28556.0,0.00299046]
[1680684650111,0.3900894,28557.0,28556.0,0.16139828]
[1680684652217,0.027,28557.0,28556.0,0.16139828]
[1680684659215,0.02687342,28557.0,28556.0,0.16139828]
[1680684662028,0.02687342,28557.0,28556.0,0.17025528]
[1680684662254,0.02687342,28557.0,28556.0,0.16139828]
[1680684669297,0.0267066,28557.0,28556.0,0.16139828]
[1680684679466,0.0265379,28557.0,28556.0,0.16139828]
[1680684683486,0.38974846,28557.0,28556.0,0.00299046]
[1680684683933,0.83187057,28557.0,28556.0,0.00299046]
[1680684685450,0.88219857,28557.0,28556.0,0.00299046]
[1680684685668,0.83187057,28557.0,28556.0,0.00299046]
[1680684688125,0.88267057,28557.0,28556.0,0.00299046]
[1680684688340,0.83187057,28557.0,28556.0,0.00299046]
[1680684688554,0.88214457,28557.0,28556.0,0.00299046]
[1680684688769,0.83187057,28557.0,28556.0,0.00299046]
[1680684689438,0.88152709,28557.0,28556.0,0.00299046]
[1680684695154,0.83168509,28557.0,28556.0,0.00299046]
[1680684697788,0.88329209,28557.0,28556.0,0.00299046]
[1680684697912,0.83168509,28557.0,28556.0,0.00299046]
[1680684699347,0.83150634,28557.0,28556.0,0.00299046]
[1680684701921,0.38938423,28557.0,28556.0,0.00299046]
[1680684702143,0.38938423,28557.0,28556.0,0.13885558]
[1680684704533,0.38966003,28557.0,28556.0,0.12885558]
[1680684704765,0.38966003,28557.0,28555.0,0.08405074]
[1680684704974,0.36321056,28556.0,28555.0,0.08387074]
[1680684705959,0.39021056,28556.0,28555.0,0.08387074]
[1680684706187,0.39021056,28556.0,28555.0,0.20340687]
[1680684706393,0.39021056,28556.0,28555.0,0.20358951]
[1680684708594,0.39045056,28556.0,28555.0,0.20352951]
[1680684708836,0.39048636,28556.0,28555.0,0.20352951]
[1680684709206,0.39021056,28556.0,28555.0,0.20358951]
[1680684709881,0.43760356,28556.0,28555.0,0.20358951]
[1680684710102,0.39021056,28556.0,28555.0,0.20358951]
[1680684714938,0.44064756,28556.0,28555.0,0.20358951]
[1680684715793,0.44227256,28556.0,28555.0,0.20358951]
[1680684716212,0.39021056,28556.0,28555.0,0.20358951]
[1680684719281,0.39008848,28556.0,28555.0,0.20358951]
[1680684719614,0.39008848,28556.0,28555.0,0.2028434]
[1680684719615,0.39036428,28556.0,28555.0,0.2028434]
[1680684720449,0.39036428,28556.0,28555.0,0.08330727]
[1680684723358,0.42256724,28555.0,28554.0,0.12580611]
[1680684723579,0.8363578,28555.0,28554.0,0.12580611]
[1680684723799,0.7857778,28555.0,28554.0,0.12580611]
[1680684724293,0.8364368,28555.0,28554.0,0.12580611]
[1680684724514,0.8634368,28555.0,28554.0,0.12580611]
[1680684724748,0.8634368,28555.0,28554.0,0.12592875]
[1680684730423,0.44086956,28555.0,28554.0,0.12592875]
[1680684731662,0.39021056,28555.0,28554.0,0.12592875]
[1680684732288,0.39009302,28555.0,28554.0,0.12592875]
[1680684733364,0.44068002,28555.0,28554.0,0.12592875]
[1680684733538,0.43912202,28555.0,28554.0,0.12592875]
[1680684735113,0.39009302,28555.0,28554.0,0.12592875]
[1680684735329,0.44161202,28555.0,28554.0,0.12592875]
[1680684736604,0.39009302,28555.0,28554.0,0.12592875]
[1680684737479,0.43921202,28555.0,28554.0,0.12592875]
[1680684739214,0.39009302,28555.0,28554.0,0.12592875]
[1680684740927,0.39036882,28555.0,28554.0,0.12592875]
[1680684741390,0.39009302,28555.0,28554.0,0.12592875]
[1680684742495,0.38991041,28555.0,28554.0,0.12592875]
[1680684743862,0.03519985,28555.0,28554.0,0.12592875]
[1680684744065,0.03508479,28555.0,28554.0,0.28645302]
[1680684744335,0.03508479,28555.0,28554.0,0.27813602]
[1680684744754,0.027,28555.0,28554.0,0.27813602]
[1680684744983,0.027,28555.0,28554.0,0.32892858]
[1680684745234,0.027,28555.0,28554.0,0.00865064]
[1680684745886,0.027,28555.0,28554.0,0.15242223]
[1680684746106,0.36248917,28561.0,28554.0,0.15248223]
[1680684746330,0.71680771,28561.0,28558.0,0.08399061]
[1680684746574,0.71680771,28561.0,28558.0,0.08411061]
[1680684746793,0.71680771,28561.0,28558.0,0.00012]
[1680684747009,0.71680771,28561.0,28557.0,0.08417061]
[1680684747304,0.74380771,28561.0,28558.0,0.001]
[1680684749338,0.74380771,28561.0,28558.0,0.12994871]
[1680684749539,0.74380771,28561.0,28558.0,0.13012871]
[1680684750364,0.34678281,28560.0,28558.0,0.00118]
[1680684750615,0.34678281,28560.0,28558.0,0.001]
[1680684750813,0.34678281,28560.0,28558.0,0.00118]
[1680684751167,0.34678281,28560.0,28558.0,0.00018]
[1680684751591,0.34678281,28560.0,28558.0,6e-05]
[1680684751809,0.34678281,28560.0,28558.0,0.07938898]
[1680684752370,0.37354536,28560.0,28558.0,0.07926898]
[1680684752578,0.37354536,28560.0,28558.0,0.07920898]
[1680684757758,0.027,28560.0,28558.0,0.07920898]
[1680684762476,0.02688546,28560.0,28558.0,0.07920898]
[1680684766534,0.049331,28559.0,28556.0,0.00018]
[1680684766754,0.049331,28559.0,28555.0,0.08498528]
[1680684766755,0.14189681,28559.0,28555.0,0.24745331]
[1680684766971,0.44892861,28558.0,28555.0,0.24745331]
[1680684767190,0.44892861,28558.0,28555.0,0.24645864]
[1680684767412,0.41340056,28557.0,28555.0,0.08417061]
[1680684767663,0.049547,28556.0,28555.0,0.00018]
[1680684768125,0.058047,28556.0,28555.0,0.00018]
[1680684768371,0.36321056,28556.0,28555.0,0.00018]
[1680684768589,0.71485556,28556.0,28553.0,6e-05]
[1680684768834,0.71464256,28555.0,28553.0,6e-05]
[1680684769059,0.050431,28554.0,28552.0,0.00099008]
[1680684769279,0.36321056,28553.0,28551.0,0.14025376]
[1680684769533,0.048814,28552.0,28551.0,0.0025]
[1680684769780,0.0490898,28552.0,28551.0,0.0025]
[1680684770498,0.0002758,28552.0,28551.0,0.0025]
[1680684771392,0.0511238,28552.0,28551.0,0.0025]
[1680684771633,0.0781238,28552.0,28551.0,0.0025]
[1680684771847,0.0002758,28552.0,28551.0,0.0025]
[1680684772253,0.0272758,28552.0,28551.0,0.0025]
[1680684772552,0.0002758,28552.0,28551.0,0.0025]
[1680684772773,0.0272758,28552.0,28551.0,0.0025]
[1680684773026,0.0002758,28552.0,28551.0,0.0025]
[1680684774221,0.0272758,28552.0,28551.0,0.0025]
[1680684774433,0.0002758,28552.0,28551.0,0.0025]
[1680684774651,0.0272758,28552.0,28551.0,0.0025]
[1680684774894,0.0002758,28552.0,28551.0,0.0025]
[1680684775149,0.0272758,28552.0,28551.0,0.0025]
[1680684775375,0.0002758,28552.0,28551.0,0.0025]
[1680684775614,0.0776468,28552.0,28551.0,0.0025]
[1680684775853,0.0506468,28552.0,28551.0,0.0025]
[1680684776069,0.0002758,28552.0,28551.0,0.0025]
[1680684776277,0.0505898,28552.0,28551.0,0.0025]
[1680684776480,0.0272758,28552.0,28551.0,0.0025]
[1680684776957,0.39021056,28552.0,28551.0,0.0025]
[1680684777161,0.43866156,28552.0,28551.0,0.0025]
[1680684777359,0.36321056,28552.0,28551.0,0.0025]
[1680684777572,0.39021056,28552.0,28551.0,0.00299063]
[1680684777831,0.41602856,28552.0,28551.0,0.00299063]
[1680684778043,0.44457656,28552.0,28551.0,0.00299063]
[1680684778252,0.39021056,28552.0,28551.0,0.00299063]
[1680684779289,0.36321056,28552.0,28551.0,0.00299063]
[1680684779746,0.41239256,28552.0,28551.0,0.00299063]
[1680684779969,0.36321056,28552.0,28551.0,0.00299063]
[1680684780182,0.41606156,28552.0,28551.0,0.00299063]
[1680684780400,0.39021056,28552.0,28551.0,0.00299063]
[1680684781680,0.44164456,28552.0,28551.0,0.00299063]
[1680684783303,0.39021056,28552.0,28551.0,0.00299063]
[1680684783537,0.36321056,28552.0,28551.0,0.00299063]
[1680684783792,0.39021056,28552.0,28551.0,0.00299063]
[1680684786904,0.36321056,28552.0,28551.0,0.00299063]
[1680684787139,0.39021056,28552.0,28551.0,0.00299063]
[1680684790720,0.36321056,28552.0,28551.0,0.00299063]
[1680684790964,0.39021056,28552.0,28551.0,0.00299063]
[1680684791714,0.39021056,28552.0,28551.0,0.15499414]
[1680684791945,0.0355,28552.0,28551.0,0.15499414]
[1680684793409,0.027,28552.0,28551.0,0.16312714]
[1680684793918,0.027,28552.0,28551.0,0.16318714]
[1680684794106,0.027,28552.0,28551.0,0.16312714]
[1680684794325,0.027,28552.0,28551.0,0.24729775]
[1680684794778,0.10328737,28556.0,28551.0,0.24729775]
[1680684795017,0.021,28552.0,28551.0,0.24729775]
[1680684795250,0.41593445,28557.0,28551.0,0.24729775]
[1680684795494,0.021,28552.0,28551.0,0.23904208]
[1680684795765,0.021,28552.0,28551.0,0.24724812]
[1680684797487,0.021,28552.0,28551.0,0.11215717]
[1680684801772,0.021,28552.0,28551.0,0.23814308]
[1680684802690,0.021,28552.0,28551.0,0.1569787]
[1680684806673,0.021,28552.0,28551.0,0.32495991]
[1680684807600,0.021,28552.0,28551.0,0.32545054]
[1680684808723,0.021,28552.0,28551.0,0.19946463]
[1680684810910,0.021,28552.0,28551.0,0.40944115]
[1680684811135,0.021,28552.0,28551.0,0.19946463]
[1680684812162,0.021,28552.0,28551.0,0.40944115]
[1680684812391,0.021,28552.0,28551.0,0.19946463]
[1680684812849,0.021,28552.0,28551.0,0.40944115]
[1680684813787,0.021,28552.0,28551.0,0.24145994]
[1680684814011,0.021,28552.0,28551.0,0.40923391]
[1680684814208,0.021,28552.0,28551.0,0.40923401]
[1680684816201,0.021,28552.0,28551.0,0.40923201]
[1680684817157,0.021,28552.0,28551.0,0.32081368]
[1680684824705,0.021,28552.0,28551.0,0.15304161]
[1680684830623,0.021,28552.0,28551.0,0.16004661]
[1680684832951,0.42807749,28552.0,28551.0,0.16787662]
[1680684833189,0.42823775,28552.0,28551.0,0.29378797]
[1680684834758,0.42823775,28552.0,28551.0,0.16787662]
[1680684835820,0.42823775,28552.0,28551.0,0.29381398]
[1680684836059,0.42823775,28552.0,28551.0,0.2938141]
[1680684836497,0.42823775,28552.0,28551.0,0.29381424]
[1680684836729,0.42823775,28552.0,28551.0,0.16793662]
[1680684836981,0.42823775,28552.0,28551.0,0.16787662]
[1680684840479,0.42796787,28552.0,28551.0,0.12601977]
[1680684840721,0.42796787,28552.0,28551.0,0.12595977]
[1680684841428,0.38410094,28552.0,28551.0,0.12595977]
[1680684841682,0.4375622,28552.0,28550.0,0.00018]
[1680684841919,0.41740856,28551.0,28549.0,0.20992354]
[1680684842160,0.053112,28550.0,28549.0,0.20992354]
[1680684842376,0.41632256,28550.0,28549.0,0.12595977]
[1680684842595,0.36337082,28550.0,28549.0,0.12595977]
[1680684842863,0.73586587,28550.0,28549.0,0.12595977]
[1680684843083,0.78921587,28550.0,28549.0,0.12595977]
[1680684844174,0.73586587,28550.0,28549.0,0.12595977]
[1680684844387,0.76286587,28550.0,28549.0,0.12595977]
[1680684844598,0.81550187,28550.0,28549.0,0.12595977]
[1680684844987,0.76286587,28550.0,28549.0,0.08393405]
[1680684846594,0.73586587,28550.0,28549.0,0.08393405]
[1680684846849,0.76286587,28550.0,28549.0,0.08393405]
[1680684847061,0.81706687,28550.0,28549.0,0.08393405]
[1680684847264,0.76286587,28550.0,28549.0,0.08393405]
[1680684847709,0.81613187,28550.0,28549.0,0.08393405]
[1680684848333,0.76286587,28550.0,28549.0,0.08393405]
[1680684848962,0.81639487,28550.0,28549.0,0.08393405]
[1680684849411,0.76286587,28550.0,28549.0,0.08393405]
[1680684849774,0.76286587,28550.0,28548.0,0.20989382]
[1680684849988,0.36321056,28549.0,28548.0,0.20989382]
[1680684850200,0.36337082,28549.0,28548.0,0.20989382]
[1680684851266,0.36337082,28549.0,28548.0,0.08393405]
[1680684853042,0.81047098,28549.0,28548.0,0.08430212]
[1680684853251,0.81047098,28549.0,28548.0,0.00036807]
[1680684853467,0.78347098,28549.0,28548.0,0.00036807]